bitfinex/quotes_SOLUSD_20250928
["timestamp","ask_amount","ask_price","bid_price","bid_amount"]
[1759029997776,1.32014687,202.05,202.04,0.7]
[1759029998174,37.9,202.08,202.04,0.7]
[1759029998175,1.32014687,202.06,202.04,0.7]
[1759029998582,1.32014687,202.06,202.04,81.2]
[1759029998880,1.32014687,202.06,202.05,0.7]
[1759030000179,1.32014687,202.06,202.04,80.5]
[1759030000381,1.32014687,202.05,202.04,80.5]
[1759030000798,1.32014687,202.05,202.04,81.2]
[1759030001003,37.9,202.09,202.04,81.2]
[1759030001302,1.32014687,202.05,202.04,80.5]
[1759030002000,1.32014687,202.05,202.04,81.2]
[1759030004097,1.32014687,202.05,202.04,80.5]
[1759030004290,1.32014687,202.05,202.04,81.2]
[1759030005101,1.42702203,202.05,202.04,81.2]
[1759030009309,1.42702203,202.05,202.04,80.5]
[1759030013513,1.42702203,202.05,202.04,81.18]
[1759030024104,0.09218077,202.06,202.04,81.18]
[1759030024105,1.32014687,202.06,202.04,81.18]
[1759030024309,1.32014687,202.06,202.05,0.68]
[1759030024618,1.32014687,202.06,202.04,80.5]
[1759030024806,1.32014687,202.06,202.05,0.68]
[1759030024995,1.42055071,202.06,202.05,0.68]
[1759030026619,1.42055071,202.06,202.04,80.5]
[1759030026805,1.42055071,202.06,202.04,81.18]
[1759030027513,1.42055071,202.06,202.04,80.5]
[1759030027694,0.10040384,202.06,202.05,0.68]
[1759030028303,0.10040384,202.06,202.05,81.18]
[1759030031407,0.09215416,202.07,202.06,80.39959616]
[1759030031609,0.09215416,202.07,202.06,81.10959616]
[1759030036723,0.09215416,202.07,202.06,86.0586212]
[1759030036931,0.09215416,202.07,202.06,125.25876807]
[1759030037114,0.09195213,202.1,202.09,80.11262991]
[1759030037310,6.36014452,202.1,202.06,82.09808644]
[1759030037523,1.32014687,202.07,202.06,80.11262991]
[1759030038026,5.38198787,202.07,202.06,80.11262991]
[1759030039934,10.33076799,202.07,202.06,80.11262991]
[1759030043042,15.61135547,202.07,202.02,80.31262991]
[1759030043336,1.32014687,202.03,202.02,80.31262991]
[1759030044034,37.88,202.09,202.02,81.02262991]
[1759030044035,1.32014687,202.04,202.02,81.02262991]
[1759030044238,1.32014687,202.04,202.03,0.71]
[1759030045233,1.42179542,202.04,202.03,0.71]
[1759030049036,1.42179542,202.04,202.03,80.82262991]
[1759030049962,1.42179542,202.04,202.03,80.11262991]
[1759030050126,1.42179542,202.04,202.03,80.82262991]
[1759030050610,2.16463103,202.04,202.03,80.82262991]
[1759030052438,2.16463103,202.04,202.03,80.11262991]
[1759030055751,2.16463103,202.04,202.03,80.82262991]
[1759030059065,2.16463103,202.04,202.03,80.11262991]
[1759030062144,2.16463103,202.04,202.03,80.82262991]
[1759030062340,0.10164855,202.04,202.03,80.82262991]
[1759030062656,0.10164855,202.04,202.03,95.71872962]
[1759030064059,2.06298248,202.06,202.03,95.71872962]
[1759030064275,2.06298248,202.06,202.04,0.71]
[1759030065159,0.1051506,202.05,202.04,0.71]
[1759030065971,0.1051506,202.05,202.04,87.83512733]
[1759030066256,0.1051506,202.05,202.04,102.72900843]
[1759030069163,0.1051506,202.05,202.04,116.32460244]
[1759030078673,0.18289536,204.46,202.1,79.50711247]
[1759030078874,0.10155506,202.12,202.1,79.50711247]
[1759030079461,0.10155506,202.12,202.1,81.49247045]
[1759030084060,2.06298248,202.13,202.1,81.49247045]
[1759030084480,2.06298248,202.13,202.1,79.50711247]
[1759030084663,2.06298248,202.11,202.1,79.50711247]
[1759030085060,2.16518024,202.11,202.1,79.50711247]
[1759030085263,2.16518024,202.11,202.1,94.39729735]
[1759030090095,2.86518024,202.11,202.1,79.50711247]
[1759030090294,2.16518024,202.11,202.1,79.50711247]
[1759030090474,2.16518024,202.11,202.1,81.67229271]
[1759030090978,2.16518024,202.11,202.1,79.50711247]
[1759030092879,2.16518024,202.11,202.1,81.67229271]
[1759030093288,2.16518024,202.11,202.1,79.50711247]
[1759030098298,0.10219776,202.11,202.1,79.50711247]
[1759030098677,0.80219776,202.11,202.1,79.50711247]
[1759030099308,0.10219776,202.11,202.1,79.50711247]
[1759030100795,2.16518024,202.11,202.1,79.50711247]
[1759030104122,2.06298248,202.11,202.1,79.50711247]
[1759030105011,2.16887076,202.11,202.1,79.50711247]
[1759030106094,0.10588828,202.11,202.1,79.50711247]
[1759030106599,2.16887076,202.11,202.1,79.50711247]
[1759030107322,2.16887076,202.11,202.1,81.67598323]
[1759030110413,5.51249859,202.11,202.1,81.67598323]
[1759030110925,5.51249859,202.11,202.1,79.50711247]
[1759030112720,4.76895746,202.11,202.1,85.01961106]
[1759030114126,4.76895746,202.11,202.1,85.70961106]
[1759030114319,0.10588828,202.11,202.1,85.70961106]
[1759030115530,0.10160467,202.12,202.11,79.40122419]
[1759030115808,3.44636684,202.12,202.11,80.09122419]
[1759030116018,0.10160467,202.12,202.11,122.89902489]
[1759030116305,0.10160467,202.12,202.11,137.7877318]
[1759030118909,0.10160467,202.12,202.11,132.8399311]
[1759030119535,1.42104602,202.12,202.11,94.2899311]
[1759030124115,1.31944135,202.12,202.11,79.40122419]
[1759030124315,1.31944135,202.12,202.11,81.38668072]
[1759030125070,1.42759322,202.12,202.11,81.38668072]
[1759030126414,2.09759322,202.12,202.11,81.38668072]
[1759030126619,1.42759322,202.12,202.11,81.38668072]
[1759030131849,0.10815187,202.12,202.11,81.38668072]
[1759030132055,1.42759322,202.12,202.11,81.38668072]
[1759030133553,1.42759322,202.12,202.11,82.08668072]
[1759030135631,1.42759322,202.12,202.11,81.38668072]
[1759030142239,4.76920526,202.12,202.11,81.38668072]
[1759030144063,4.66105339,202.12,202.11,81.38668072]
[1759030145046,4.75630504,202.12,202.11,81.38668072]
[1759030145347,4.75630504,202.12,202.11,82.08668072]
[1759030147663,5.44630504,202.12,202.11,79.40122419]
[1759030148363,43.28630504,202.12,202.11,79.40122419]
[1759030148538,10.39386094,202.12,202.11,79.40122419]
[1759030148741,48.23386094,202.12,202.11,79.40122419]
[1759030149351,48.23419354,202.12,202.11,79.40122419]
[1759030149942,10.39419354,202.12,202.11,79.40122419]
[1759030150164,48.23419354,202.12,202.11,79.40122419]
[1759030151163,10.39419354,202.12,202.11,79.40122419]
[1759030151464,48.23419354,202.12,202.11,79.40122419]
[1759030152954,48.23419354,202.12,202.07,0.69]
[1759030153153,1.31944135,202.08,202.06,79.40122419]
[1759030153356,1.31944135,202.07,202.06,79.40122419]
[1759030153749,1.31944135,202.07,202.06,80.09122419]
[1759030153955,1.31944135,202.07,202.06,85.13405167]
[1759030163653,1.31944135,202.07,202.06,85.10405167]
[1759030163857,1.31944135,202.07,202.06,80.06122419]
[1759030165081,1.41935091,202.07,202.06,79.40122419]
[1759030165258,1.41935091,202.07,202.06,80.06122419]
[1759030165855,1.41935091,202.07,202.06,79.40122419]
[1759030166562,1.41935091,202.07,202.06,80.06122419]
[1759030167655,1.41935091,202.07,202.06,84.18341784]
[1759030172376,1.41935091,202.07,202.06,83.52341784]
[1759030172585,2.16240594,202.07,202.06,84.18341784]
[1759030173082,2.16240594,202.07,202.06,83.52341784]
[1759030173477,2.16240594,202.07,202.06,84.18341784]
[1759030173975,2.16240594,202.07,202.06,83.52341784]
[1759030174983,2.16240594,202.07,202.06,79.40122419]
[1759030176066,2.84240594,202.07,202.06,79.40122419]
[1759030177881,2.16240594,202.07,202.06,79.40122419]
[1759030181270,2.16240594,202.07,202.06,80.06122419]
[1759030181685,0.09990956,202.07,202.06,80.06122419]
[1759030181878,2.16240594,202.07,202.06,80.06122419]
[1759030182693,2.16240594,202.07,202.06,83.49659397]
[1759030184166,2.06249638,202.07,202.06,83.49659397]
[1759030185072,2.15515113,202.07,202.06,83.49659397]
[1759030185994,2.15515113,202.07,202.06,79.40122419]
[1759030189179,5.49661209,202.07,202.06,79.40122419]
[1759030191091,5.49661209,202.07,202.06,80.08122419]
[1759030195198,2.15515113,202.07,202.06,80.08122419]
[1759030201209,2.15515113,202.07,202.06,82.23637532]
[1759030201507,2.15515113,202.07,202.06,80.08122419]
[1759030203593,0.09265475,202.07,202.06,122.87024923]
[1759030204305,2.06249638,202.1,202.06,124.85580432]
[1759030204490,2.06249638,202.1,202.07,0.68]
[1759030204804,2.06249638,202.08,202.07,0.68]
[1759030205005,2.06249638,202.08,202.07,15.57388109]
[1759030205184,2.1532976,202.08,202.06,79.40122419]
[1759030205501,2.06249638,202.07,202.06,83.42470226]
[1759030206214,2.06249638,202.07,202.06,82.74470226]
[1759030206709,2.06249638,202.07,202.06,79.40122419]
[1759030208811,11.06527608,202.07,202.06,79.40122419]
[1759030209015,13.12777246,202.07,202.06,79.40122419]
[1759030209898,11.06527608,202.07,202.06,79.40122419]
[1759030210125,11.06527608,202.07,202.02,0.2]
[1759030210126,13.12777246,202.07,202.02,0.2]
[1759030210386,2.06249638,202.03,202.02,0.2]
[1759030210590,5.40649596,202.03,202.02,0.2]
[1759030210790,6.09649596,202.03,202.02,0.2]
[1759030211207,43.93649596,202.03,202.02,0.2]
[1759030212089,48.88625589,202.03,202.02,0.2]
[1759030214208,43.93649596,202.03,202.02,0.2]
[1759030214534,5.40649596,202.03,202.02,0.91]
[1759030214808,2.06249638,202.03,202.02,0.91]
[1759030215189,2.06249638,202.04,202.02,0.91]
[1759030215412,2.06249638,202.04,202.03,0.71]
[1759030215921,2.06249638,202.05,202.03,80.11122419]
[1759030216213,2.06249638,202.05,202.04,0.71]
[1759030217513,2.06249638,202.05,202.03,81.38766672]
[1759030217715,2.06249638,202.04,202.03,81.38766672]
[1759030220027,2.06249638,202.04,202.03,82.09766672]
[1759030220930,2.06249638,202.04,202.03,82.04766672]
[1759030224016,2.06249638,202.05,202.03,82.04766672]
[1759030224221,2.06249638,202.05,202.04,0.66]
[1759030225234,2.16199698,202.05,202.04,0.66]
[1759030226004,2.16199698,202.05,202.04,4.09486971]
[1759030226447,0.0995006,202.05,202.04,4.09486971]
[1759030226736,0.0995006,202.05,202.04,83.4960939]
[1759030227736,0.0995006,202.05,202.04,126.28560884]
[1759030228826,0.0995006,202.05,202.04,121.3360939]
[1759030230160,0.0995006,202.05,202.04,126.28560884]
[1759030230338,0.10334073,202.06,202.05,79.30172359]
[1759030230526,0.10334073,202.06,202.05,79.96172359]
[1759030231123,0.10334073,202.06,202.05,81.94757441]
[1759030232712,0.10334073,202.06,202.05,79.96172359]
[1759030237659,0.09892621,202.07,202.06,79.19838286]
[1759030237815,0.09892621,202.07,202.06,84.8074079]
[1759030238634,0.09892621,202.07,202.06,86.79296299]
[1759030238830,0.09892621,202.07,202.06,88.11265191]
[1759030240038,0.09892621,202.07,202.06,236.40824592]
[1759030244233,1.31968892,202.15,202.11,79.19838286]
[1759030244419,1.31968892,202.15,202.12,0.66]
[1759030244620,2.03968892,202.16,202.12,0.66]
[1759030245228,0.10246978,202.13,202.12,0.66]
[1759030245439,0.10246978,202.13,202.11,256.66612744]
[1759030245629,0.10246978,202.13,202.11,264.94529518]
[1759030245955,0.10246978,202.13,202.11,256.66612744]
[1759030246138,0.10246978,202.13,202.12,0.66]
[1759030246319,0.10246978,202.13,202.12,2.6450624]
[1759030247329,0.10246978,202.13,202.12,7.5926183]
[1759030248145,0.10246978,202.13,202.12,142.2926183]
[1759030249653,0.10246978,202.13,202.12,137.3450624]
[1759030250637,0.82246978,202.13,202.12,134.7]
[1759030250937,2.1421587,202.13,202.12,79.19838286]
[1759030255548,1.4221587,202.13,202.12,79.19838286]
[1759030258843,0.10246978,202.13,202.12,79.19838286]
[1759030259150,1.4221587,202.13,202.12,79.19838286]
[1759030260450,0.10246978,202.13,202.12,79.19838286]
[1759030261243,0.10246978,202.13,202.12,79.86838286]
[1759030263056,4.15484643,202.26,202.13,13.59559401]
[1759030263261,1.31968892,202.22,202.16,1.31968892]
[1759030263458,1.31968892,202.22,202.17,38.51]
[1759030263767,1.31968892,202.22,202.18,0.67]
[1759030263957,1.31968892,202.22,202.19,0.67]
[1759030264157,1.31968892,202.21,202.18,79.76591308]
[1759030265182,1.31968892,202.19,202.18,79.76591308]
[1759030266766,1.31968892,202.21,202.18,122.53197675]
[1759030267066,1.31968892,202.22,202.19,0.67]
[1759030267273,1.31968892,202.22,202.19,79.76591308]
[1759030267567,1.31968892,202.22,202.2,4.7348283]
[1759030267766,3.42361297,202.28,202.2,4.0648283]
[1759030267767,2.03968892,202.21,202.2,4.0648283]
[1759030268065,2.03968892,202.21,202.14,0.67]
[1759030268271,0.72,202.2,202.15,4.04654512]
[1759030268456,1.31968892,202.16,202.15,4.71654512]
[1759030268657,1.31968892,202.17,202.16,0.67]
[1759030271457,1.31968892,202.17,202.15,83.1424582]
[1759030271660,1.31968892,202.16,202.15,79.09591308]
[1759030278156,1.31968892,202.16,202.15,79.77591308]
[1759030279981,1.31968892,202.17,202.15,79.77591308]
[1759030280180,1.31968892,202.17,202.16,0.72]
[1759030280557,1.31968892,202.17,202.15,222.78704572]
[1759030280777,1.31968892,202.16,202.15,222.06704572]
[1759030281467,1.31968892,202.16,202.15,222.78704572]
[1759030281668,5.65326849,202.28,202.15,227.73386738]
[1759030281669,1.31968892,202.18,202.15,227.73386738]
[1759030281855,1.31968892,202.19,202.16,0.72]
[1759030282059,1.31968892,202.17,202.16,79.09591308]
[1759030282460,1.97968892,202.17,202.16,79.09591308]
[1759030283178,1.97968892,202.17,202.13,79.09591308]
[1759030283376,1.31968892,202.14,202.13,79.09591308]
[1759030283781,1.31968892,202.14,202.11,79.09591308]
[1759030283782,1.97968892,202.14,202.11,79.09591308]
[1759030283967,1.31968892,202.12,202.11,79.09591308]
[1759030284171,1.97968892,202.12,202.11,79.09591308]
[1759030285274,2.07513678,202.12,202.11,79.09591308]
[1759030285477,1.41513678,202.12,202.11,79.09591308]
[1759030285877,1.41513678,202.12,202.11,79.81591308]
[1759030287588,1.41513678,202.12,202.11,79.09591308]
[1759030292595,2.1569899,202.12,202.11,79.09591308]
[1759030293181,2.1569899,202.12,202.11,81.25290298]
[1759030294797,0.09544786,202.12,202.11,81.25290298]
[1759030295097,2.1569899,202.12,202.11,81.25290298]
[1759030297512,2.8169899,202.12,202.11,2.1569899]
[1759030297710,7.7645458,202.12,202.02,79.29591308]
[1759030297881,2.06154204,202.03,202.02,79.29591308]
[1759030298180,2.06154204,202.03,202.02,15.81683939]
[1759030299401,2.06154204,202.04,202.02,15.81683939]
[1759030299605,2.06154204,202.04,202.03,0.72]
[1759030300206,2.06154204,202.07,202.03,53.5560997]
[1759030300404,2.06154204,202.07,202.04,0.72]
[1759030300712,2.06154204,202.11,202.05,51.53559401]
[1759030300900,0.09544786,202.12,202.07,15.65713605]
[1759030301200,0.09544786,202.12,202.08,40.02154204]
[1759030301491,0.09544786,202.12,202.08,40.74154204]
[1759030301701,0.09544786,202.12,202.09,0.72]
[1759030301895,0.09544786,202.12,202.1,37.98]
[1759030302071,0.09544786,202.12,202.11,0.72]
[1759030303103,0.09544786,202.12,202.11,7.72934274]
[1759030304106,2.06154204,202.16,202.11,7.72934274]
[1759030304276,2.06154204,202.16,202.11,7.00934274]
[1759030304484,2.06154204,202.16,202.12,0.72]
[1759030304982,2.06154204,202.16,202.12,43.64751341]
[1759030305196,2.06154204,202.16,202.13,4.04878577]
[1759030305399,2.06154204,202.16,202.14,0.72]
[1759030306486,2.06154204,202.16,202.15,3.32878577]
[1759030308505,2.06154204,202.17,202.15,83.14469885]
[1759030308679,2.06154204,202.18,202.16,0.72]
[1759030308878,2.06154204,202.19,202.17,0.72]
[1759030309093,2.06154204,202.19,202.17,79.81591308]
[1759030309297,2.06154204,202.19,202.17,83.14469885]
[1759030309610,2.06154204,202.18,202.17,79.81591308]
[1759030309804,2.06154204,202.19,202.18,3.32878577]
[1759030313499,2.06154204,202.19,202.18,82.42469885]
[1759030314417,2.75154204,202.19,202.18,82.42469885]
[1759030315187,2.06154204,202.19,202.18,82.42469885]
[1759030315591,2.75154204,202.19,202.18,82.42469885]
[1759030315811,2.06154204,202.19,202.18,82.42469885]
[1759030317816,2.06154204,202.19,202.18,83.11469885]
[1759030318724,3.32878577,202.23,202.18,83.11469885]
[1759030318900,2.06154204,202.23,202.19,0.69]
[1759030319222,2.06154204,202.22,202.19,0.69]
[1759030319423,2.06154204,202.22,202.2,14.88279797]
[1759030319613,2.06154204,202.22,202.21,0.69]
[1759030319816,2.06154204,202.22,202.18,79.78591308]
[1759030320000,2.06154204,202.21,202.18,79.78591308]
[1759030320202,2.06154204,202.21,202.19,0.69]
[1759030320505,2.06154204,202.21,202.2,0.69]
[1759030321596,2.06154204,202.21,202.2,15.57279797]
[1759030322514,2.06154204,202.22,202.2,94.66871105]
[1759030322694,2.06154204,202.23,202.21,0.69]
[1759030323213,2.06154204,202.23,202.22,14.88205968]
[1759030323393,2.06154204,202.23,202.22,15.57205968]
[1759030323717,2.06154204,202.25,202.22,94.66797276]
[1759030323896,0.1,202.28,202.23,0.69]
[1759030323897,2.06154204,202.26,202.23,0.69]
[1759030324220,2.06154204,202.24,202.07,213.79591308]
[1759030324428,17.31216302,202.17,202.11,2.06154204]
[1759030324720,2.06154204,202.12,202.11,2.06154204]
[1759030324933,11.2983607,202.12,202.04,0.69]
[1759030325098,0.10309045,202.04,202.03,2.06154204]
[1759030325290,2.16463249,202.04,202.03,2.06154204]
[1759030325529,2.16463249,202.04,202.03,0.69]
[1759030325724,2.16463249,202.04,202.02,2.95154204]
[1759030325899,2.06154204,202.03,202.02,2.95154204]
[1759030326104,2.06154204,202.03,202.02,0.2]
[1759030326302,16.22098503,202.03,202.02,0.2]
[1759030326628,16.91098503,202.03,202.02,0.2]
[1759030326823,14.15944299,202.03,202.02,0.2]
[1759030327124,16.22098503,202.03,202.02,0.2]
[1759030328029,14.15944299,202.03,202.02,0.89]
[1759030328204,2.06154204,202.03,202.02,0.89]
[1759030329832,2.06154204,202.03,202.02,0.2]
[1759030330725,2.06154204,202.03,202.02,0.92]
[1759030331108,2.16463249,202.04,202.02,0.92]
[1759030331311,2.06154204,202.03,202.02,0.2]
[1759030332035,2.06154204,202.03,202.02,0.92]
[1759030334215,2.06154204,202.03,202.02,2.98154204]
[1759030336444,2.06154204,202.03,202.02,82.07745512]
[1759030340840,2.06154204,202.03,202.02,81.35745512]
[1759030341150,2.06154204,202.03,202.02,82.03745512]
[1759030341538,2.06154204,202.03,202.02,81.35745512]
[1759030342239,2.76154204,202.03,202.02,79.29591308]
[1759030347456,2.06154204,202.03,202.02,79.29591308]
[1759030348248,2.76154204,202.03,202.02,79.29591308]
[1759030351229,41.08154204,202.03,202.02,79.29591308]
[1759030351949,40.38154204,202.03,202.02,79.29591308]
[1759030353226,2.06154204,202.03,202.02,79.29591308]
[1759030353551,40.36154204,202.03,202.02,79.97591308]
[1759030354530,39.6204799,202.03,202.02,79.97591308]
[1759030354731,1.3204799,202.03,202.02,79.97591308]
[1759030357151,1.3204799,202.03,202.02,79.29591308]
[1759030357340,2.0204799,202.03,202.02,79.29591308]
[1759030357542,40.3004799,202.03,202.02,79.29591308]
[1759030360835,45.23023983,202.03,202.02,79.29591308]
[1759030361040,6.97023983,202.03,202.02,79.29591308]
[1759030361254,45.23023983,202.03,202.02,79.29591308]
[1759030362661,45.23023983,202.03,202.02,0.2]
[1759030364659,6.97023983,202.03,202.02,0.2]
[1759030364860,45.23023983,202.03,202.02,0.2]
[1759030365555,45.21023983,202.03,202.02,0.2]
[1759030365750,58.80583384,202.03,202.02,0.2]
[1759030365956,62.13013533,202.03,202.02,0.2]
[1759030367541,62.13013533,202.03,202.0,0.2]
[1759030367741,1.3204799,202.01,202.0,0.2]
[1759030367950,42.88478139,202.01,202.0,0.2]
[1759030368465,43.58478139,202.01,202.0,0.2]
[1759030368762,48.53503137,202.01,202.0,0.2]
[1759030369758,47.83503137,202.01,202.0,0.2]
[1759030369970,42.88478139,202.01,202.0,0.2]
[1759030371354,3.32430149,202.01,202.0,0.86]
[1759030371546,42.86478139,202.01,202.0,0.86]
[1759030371949,42.88478139,202.01,202.0,0.86]
[1759030372640,4.64478139,202.01,202.0,0.86]
[1759030372837,42.88478139,202.01,202.0,0.86]
[1759030373453,4.64478139,202.01,202.0,0.86]
[1759030373656,41.54430149,202.01,202.0,0.86]
[1759030373964,42.86478139,202.01,202.0,0.86]
[1759030374149,3.32430149,202.01,202.0,0.86]
[1759030374353,42.86478139,202.01,202.0,0.86]
[1759030375464,39.5404799,202.01,202.0,0.86]
[1759030375961,1.3204799,202.01,202.0,79.95591308]
[1759030376168,39.5404799,202.02,202.0,79.95591308]
[1759030376356,39.5404799,202.02,202.01,0.66]
[1759030376965,1.3204799,202.02,202.01,0.66]
[1759030377169,39.5404799,202.02,202.01,0.66]
[1759030377872,3.43639404,202.04,202.01,0.66]
[1759030378085,38.31911605,202.04,202.01,0.66]
[1759030378255,1.3204799,202.03,202.0,79.29591308]
[1759030378451,1.3204799,202.03,202.01,0.66]
[1759030379979,1.3204799,202.02,202.01,0.66]
[1759030381776,0.09911605,202.04,202.01,79.75591308]
[1759030381958,1.41959595,202.04,202.02,0.66]
[1759030382158,0.09911605,202.04,202.02,0.66]
[1759030382366,1.41959595,202.04,202.02,0.66]
[1759030382872,1.41959595,202.04,202.01,79.09591308]
[1759030383079,1.41959595,202.04,202.03,0.66]
[1759030384077,1.41959595,202.04,202.01,79.75591308]
[1759030384078,1.3204799,202.04,202.01,79.75591308]
[1759030384275,1.3204799,202.02,202.01,79.75591308]
[1759030386277,1.3204799,202.03,202.01,79.75591308]
[1759030386481,1.3204799,202.03,202.02,0.66]
[1759030386965,1.9904799,202.03,202.0,0.2]
[1759030387173,1.3204799,202.01,202.0,0.2]
[1759030387380,42.87975525,202.01,202.0,0.2]
[1759030387564,43.54975525,202.01,202.0,0.2]
[1759030387758,5.32975525,202.01,202.0,0.2]
[1759030387956,43.54975525,202.01,202.0,0.2]
[1759030388174,48.50000523,202.01,202.0,0.2]
[1759030388893,10.28000523,202.01,202.0,0.2]
[1759030389063,62.09559924,202.01,202.0,0.2]
[1759030389264,23.87559924,202.01,202.0,0.2]
[1759030389560,13.59559401,202.0,201.98,0.2]
[1759030389768,11.11934718,201.99,201.96,0.2]
[1759030389980,1.3204799,201.97,201.96,0.2]
[1759030390370,39.5404799,201.97,201.96,0.2]
[1759030390762,39.5604799,201.97,201.96,0.2]
[1759030392586,1.3204799,201.97,201.96,0.2]
[1759030392790,39.5604799,201.97,201.96,0.2]
[1759030393090,40.2704799,201.97,201.96,0.2]
[1759030393773,40.2704799,201.97,201.96,79.29591308]
[1759030393975,45.22171028,201.97,201.96,79.29591308]
[1759030399676,45.22171028,201.97,201.96,0.2]
[1759030400991,6.98171028,201.97,201.96,0.2]
[1759030401197,45.18171028,201.97,201.96,0.2]
[1759030401498,45.16171028,201.97,201.96,0.2]
[1759030402179,6.98171028,201.97,201.96,0.2]
[1759030402381,45.16171028,201.97,201.96,0.2]
[1759030403686,44.45171028,201.97,201.96,0.2]
[1759030404488,6.27171028,201.97,201.96,0.2]
[1759030404696,44.45171028,201.97,201.96,0.2]
[1759030406996,6.27171028,201.97,201.96,0.2]
[1759030407200,44.43171028,201.97,201.96,0.2]
[1759030410899,6.27171028,201.97,201.96,0.2]
[1759030411080,44.43171028,201.97,201.96,0.2]
[1759030411796,6.27171028,201.97,201.96,0.2]
[1759030412005,44.41171028,201.97,201.96,0.2]
[1759030416602,45.15649105,201.97,201.96,0.2]
[1759030418292,7.01649105,201.97,201.96,0.2]
[1759030418602,45.13649105,201.97,201.96,0.2]
[1759030419087,7.01649105,201.97,201.96,0.2]
[1759030419292,45.13649105,201.97,201.96,0.2]
[1759030419606,7.01649105,201.97,201.96,0.2]
[1759030419799,45.13649105,201.97,201.96,0.2]
[1759030421589,7.01649105,201.97,201.96,0.2]
[1759030421792,45.13649105,201.97,201.96,0.2]
[1759030423299,61.49734573,201.97,201.96,0.2]
[1759030423501,64.83328375,201.97,201.96,0.2]
[1759030423895,13.59559401,201.96,201.95,0.2]
[1759030424197,11.86079062,201.96,201.95,0.2]
[1759030424405,50.02079062,201.96,201.95,0.2]
[1759030424577,11.86079062,201.96,201.95,0.2]
[1759030424776,50.04079062,201.96,201.95,0.2]
[1759030425187,52.10605129,201.96,201.95,0.2]
[1759030425615,57.05752682,201.96,201.95,0.2]
[1759030427684,71.35312083,201.96,201.95,0.2]
[1759030427987,33.17312083,201.96,201.95,0.2]
[1759030428188,71.35312083,201.96,201.95,0.2]
[1759030428394,70.65312083,201.96,201.95,0.2]
[1759030430001,67.31718281,201.96,201.95,0.2]
[1759030430306,32.47525825,201.96,201.95,0.2]
[1759030430505,52.08818871,201.96,201.95,0.92]
[1759030430709,50.02292804,201.96,201.95,0.92]
[1759030431718,11.86292804,201.96,201.95,0.92]
[1759030431886,50.02292804,201.96,201.95,0.92]
[1759030435342,50.02292804,201.96,201.95,80.01591308]
[1759030437136,11.86292804,201.96,201.95,80.01591308]
[1759030437308,50.00292804,201.96,201.95,80.01591308]
[1759030437709,49.98292804,201.96,201.95,80.01591308]
[1759030439105,11.86292804,201.96,201.95,80.01591308]
[1759030439310,3.33807544,201.96,201.95,80.01591308]
[1759030439541,43.52333611,201.96,201.95,80.01591308]
[1759030441748,10.35481164,201.96,201.95,79.29591308]
[1759030441909,48.47481164,201.96,201.95,79.29591308]
[1759030442109,10.35481164,201.96,201.95,79.29591308]
[1759030442305,48.47481164,201.96,201.95,79.29591308]
[1759030442834,10.35481164,201.96,201.95,79.29591308]
[1759030443036,51.19007231,201.96,201.95,79.29591308]
[1759030443418,51.23007231,201.96,201.95,79.29591308]
[1759030445325,50.56007231,201.96,201.95,79.29591308]
[1759030445628,51.23007231,201.96,201.95,79.29591308]
[1759030445928,13.09007231,201.96,201.95,79.29591308]
[1759030446126,51.23007231,201.96,201.95,79.29591308]
[1759030446519,51.21007231,201.96,201.95,79.29591308]
[1759030446831,13.59559401,201.95,201.93,0.2]
[1759030447013,57.11893012,201.94,201.93,0.2]
[1759030447208,35.25308228,201.94,201.93,0.2]
[1759030447408,69.22048798,201.94,201.93,0.2]
[1759030447610,13.59559401,201.93,201.92,0.2]
[1759030447859,18.99893012,201.93,201.92,0.2]
[1759030448015,25.45852205,201.93,201.92,0.2]
[1759030448215,26.12852205,201.93,201.92,0.2]
[1759030448411,26.12852205,201.93,201.9,0.2]
[1759030448627,41.45807544,201.92,201.9,0.2]
[1759030448938,5.40333611,201.91,201.9,0.2]
[1759030449130,6.07333611,201.91,201.9,0.2]
[1759030449432,11.0260378,201.91,201.9,0.2]
[1759030452611,10.3560378,201.91,201.9,0.2]
[1759030453539,49.1560378,201.91,201.9,0.2]
[1759030454038,48.4760378,201.91,201.9,0.2]
[1759030456555,49.1560378,201.91,201.9,0.2]
[1759030456937,48.4760378,201.91,201.9,0.2]
[1759030457258,10.3560378,201.91,201.9,0.86]
[1759030457419,45.13796236,201.91,201.9,0.86]
[1759030457620,48.4760378,201.91,201.9,0.2]
[1759030458315,10.3560378,201.91,201.9,0.2]